[Event "Queens Festival Final-B 2022"]
[Site "Tornelo"]
[Date "2022.06.25"]
[Round "3.5"]
[White "Deak-Sala, Emilia"]
[Black "Shohradowa, Lala"]
[Result "0-1"]
[ECO "C14"]
[WhiteElo "1883"]
[BlackElo "1856"]
[Annotator "NA RC"]
[PlyCount "120"]
[EventDate "2022.06.24"]
[EventType "tourn"]
[EventCountry "NET"]
[SourceTitle "playchess.com"]
[Source "ChessBase"]
[SourceQuality "1"]
[TimeControl "180+2"]

1. e4 {[%emt 0:00:02]} e6 {[%emt 0:00:04]} 2. d4 {[%emt 0:00:02]} d5 {[%emt 0:00:02]} 3. Nc3 {[%emt 0:00:02]} Nf6 {[%emt 0:00:03]} 4. Bg5 {[%emt 0:00:01]} Be7 {[%emt 0:00:03]} 5. e5 {[%emt 0:00:05]} Nfd7 {[%emt 0:00:02]} 6. h4 {[%emt 0:00:02]} c5 {[%emt 0:00:04]} 7. Bxe7 {[%emt 0:00:19]} Kxe7 {[%emt 0:00:02]} 8. Qg4 {[%emt 0:00:28]} cxd4 {[%emt 0:00:05]} 9. Qg5+ {[%emt 0:00:05]} Ke8 {[%emt 0:00:08]} 10. Qxg7 {[%emt 0:00:02]} Rf8 {[%emt 0:00:06]} 11. Nd1 {[%emt 0:00:18]} Qa5+ {[%emt 0:00:04]} 12. c3 {[%emt 0:00:02]} Nc6 {[%emt 0:00:02]} 13. Nf3 {[%emt 0:00:11]} dxc3 {[%emt 0:00:03]} 14. bxc3 {[%emt 0:00:02]} d4 {[%emt 0:00:11]} 15. Be2 {[%emt 0:00:25]} dxc3 {[%emt 0:00:08]} 16. O-O {[%emt 0:00:06]} Ndxe5 {[%emt 0:00:07]} 17. Rc1 {[%emt 0:00:20]} Bd7 {[%emt 0:00:11]} 18. Nxc3 {[%emt 0:00:02]} Ke7 {[%emt 0:00:20]} 19. Qg5+ {[%emt 0:00:27]} f6 {[%emt 0:00:02]} 20. Qh6 {[%emt 0:00:08]} Rf7 {[%emt 0:00:16]} 21. Nxe5 {[%emt 0:00:04]} Nxe5 {[%emt 0:00:02]} 22. Bh5 {[%emt 0:00:03]} Ng6 {[%emt 0:00:20]} 23. Bxg6 {[%emt 0:00:02]} hxg6 {[%emt 0:00:02]} 24. Qxg6 {[%emt 0:00:01]} Rh8 {[%emt 0:00:03]} 25. g3 {[%emt 0:00:05]} Rhh7 {[%emt 0:00:02]} 26. Qe4 {[%emt 0:00:02]} Bc6 {[%emt 0:00:04]} 27. Qe3 {[%emt 0:00:09]} Rfg7 {[%emt 0:00:05]} 28. Rfe1 {[%emt 0:00:03]} Qf5 {[%emt 0:00:04]} 29. Kf1 {[%emt 0:00:12]} Bf3 {[%emt 0:00:12]} 30. Red1 {[%emt 0:00:06]} Bxd1 {[%emt 0:00:15]} 31. Rxd1 {[%emt 0:00:01]} Kf7 {[%emt 0:00:06]} 32. Rd7+ {[%emt 0:00:02]} Kg6 {[%emt 0:00:01]} 33. Rd4 {[%emt 0:00:02]} Rd7 {[%emt 0:00:06]} 34. Rf4 {[%emt 0:00:02]} Qd3+ {[%emt 0:00:06]} 35. Qxd3+ {[%emt 0:00:02]} Rxd3 {[%emt 0:00:02]} 36. Ne4 {[%emt 0:00:02]} e5 {[%emt 0:00:05]} 37. Rxf6+ {[%emt 0:00:01]} Kg7 {[%emt 0:00:02]} 38. Rf5 {[%emt 0:00:02]} Rd1+ {[%emt 0:00:06]} 39. Kg2 {[%emt 0:00:02]} Rh6 {[%emt 0:00:09]} 40. Rxe5 {[%emt 0:00:01]} Rd7 {[%emt 0:00:03]} 41. Rg5+ {[%emt 0:00:02]} Rg6 {[%emt 0:00:02]} 42. Rf5 {[%emt 0:00:02]} Rd4 {[%emt 0:00:03]} 43. Nc5 {[%emt 0:00:02]} b6 {[%emt 0:00:04]} 44. Nb3 {[%emt 0:00:05]} Ra4 {[%emt 0:00:02]} 45. Rf3 {[%emt 0:00:01]} Rxa2 {[%emt 0:00:03]} 46. Rc3 {[%emt 0:00:02]} Rf6 {[%emt 0:00:04]} 47. Rc7+ {[%emt 0:00:01]} Rf7 {[%emt 0:00:02]} 48. Rxf7+ {[%emt 0:00:03]} Kxf7 {[%emt 0:00:01]} 49. Nd4 {[%emt 0:00:02]} a5 {[%emt 0:00:05]} 50. g4 {[%emt 0:00:01]} Ra4 {[%emt 0:00:03]} 51. Nb5 {[%emt 0:00:03]} Rxg4+ {[%emt 0:00:02]} 52. Kf3 {[%emt 0:00:02]} Rxh4 {[%emt 0:00:02]} 53. Ke3 {[%emt 0:00:01]} Ke6 {[%emt 0:00:04]} 54. Nd4+ {[%emt 0:00:02]} Kd5 {[%emt 0:00:04]} 55. Nb3 {[%emt 0:00:02]} Rh3+ {[%emt 0:00:03]} 56. f3 {[%emt 0:00:02]} a4 {[%emt 0:00:02]} 57. Na1 {[%emt 0:00:02]} b5 {[%emt 0:00:02]} 58. Ke2 {[%emt 0:00:03]} b4 {[%emt 0:00:02]} 59. f4 {[%emt 0:00:01]} b3 {[%emt 0:00:02]} 60. Kd2 {[%emt 0:00:04]} b2 {[%emt 0:00:03]} 0-1

[Event "Queens Festival Final-B 2022"]
[Site "Tornelo"]
[Date "2022.06.25"]
[Round "4.1"]
[White "Masoumi, Sahar"]
[Black "Shohradowa, Lala"]
[Result "0-1"]
[ECO "C11"]
[WhiteElo "2004"]
[BlackElo "1856"]
[Annotator "NA RC"]
[PlyCount "96"]
[EventDate "2022.06.24"]
[EventType "tourn"]
[EventCountry "NET"]
[SourceTitle "playchess.com"]
[Source "ChessBase"]
[SourceQuality "1"]
[TimeControl "180+2"]

1. e4 {[%emt 0:00:02]} e6 {[%emt 0:00:04]} 2. d4 {[%emt 0:00:03]} d5 {[%emt 0:00:02]} 3. Nc3 {[%emt 0:00:01]} Nf6 {[%emt 0:00:02]} 4. e5 {[%emt 0:00:01]} Nfd7 {[%emt 0:00:02]} 5. f4 {[%emt 0:00:02]} c5 {[%emt 0:00:02]} 6. Nf3 {[%emt 0:00:01]} Nc6 {[%emt 0:00:02]} 7. Be3 {[%emt 0:00:01]} cxd4 {[%emt 0:00:06]} 8. Nxd4 {[%emt 0:00:02]} Bc5 {[%emt 0:00:04]} 9. Qd2 {[%emt 0:00:04]} O-O {[%emt 0:00:12]} 10. O-O-O {[%emt 0:00:02]} Bxd4 {[%emt 0:00:05]} 11. Bxd4 {[%emt 0:00:01]} Nxd4 {[%emt 0:00:02]} 12. Qxd4 {[%emt 0:00:02]} f5 {[%emt 0:00:06]} 13. h4 {[%emt 0:00:15]} Qb6 {[%emt 0:00:15]} 14. Nb5 {[%emt 0:00:15]} a6 {[%emt 0:00:31]} 15. Nd6 {[%emt 0:00:11]} Qxd4 {[%emt 0:00:09]} 16. Rxd4 {[%emt 0:00:02]} b5 {[%emt 0:00:04]} 17. Rh3 {[%emt 0:00:07]} Nb6 {[%emt 0:00:10]} 18. b3 {[%emt 0:00:17]} Bd7 {[%emt 0:00:04]} 19. Rg3 {[%emt 0:01:41]} Nc8 {[%emt 0:00:04]} 20. Nb7 {[%emt 0:00:02]} Ra7 {[%emt 0:00:15]} 21. Nc5 {[%emt 0:00:02]} Rc7 {[%emt 0:00:02]} 22. b4 {[%emt 0:00:01]} Nb6 {[%emt 0:00:07]} 23. h5 {[%emt 0:00:04]} Bc8 {[%emt 0:00:06]} 24. Rg5 {[%emt 0:00:02]} Re8 {[%emt 0:00:11]} 25. g4 {[%emt 0:00:02]} fxg4 {[%emt 0:00:07]} 26. Rxg4 {[%emt 0:00:01]} Nd7 {[%emt 0:00:03]} 27. Nxd7 {[%emt 0:00:04]} Bxd7 {[%emt 0:00:03]} 28. Bd3 {[%emt 0:00:02]} Rf8 {[%emt 0:00:05]} 29. Rg5 {[%emt 0:00:02]} Be8 {[%emt 0:00:07]} 30. f5 {[%emt 0:00:03]} h6 {[%emt 0:00:07]} 31. Rg1 {[%emt 0:00:07]} exf5 {[%emt 0:00:02]} 32. Rxd5 {[%emt 0:00:02]} Bxh5 {[%emt 0:00:04]} 33. Rd6 {[%emt 0:00:02]} Kh8 {[%emt 0:00:06]} 34. Rxa6 {[%emt 0:00:02]} f4 {[%emt 0:00:07]} 35. Rf1 {[%emt 0:00:08]} f3 {[%emt 0:00:02]} 36. Rf2 {[%emt 0:00:03]} Re7 {[%emt 0:00:04]} 37. e6 {[%emt 0:00:04]} g5 {[%emt 0:00:06]} 38. Rd6 {[%emt 0:00:11]} Kg7 {[%emt 0:00:06]} 39. Rd5 {[%emt 0:00:01]} Bg6 {[%emt 0:00:03]} 40. Bxb5 {[%emt 0:00:02]} g4 {[%emt 0:00:02]} 41. Rd4 {[%emt 0:00:03]} g3 {[%emt 0:00:04]} 42. Rfd2 {[%emt 0:00:04]} g2 {[%emt 0:00:03]} 43. Rg4 {[%emt 0:00:02]} h5 {[%emt 0:00:08]} 44. Rg3 {[%emt 0:00:01]} h4 {[%emt 0:00:02]} 45. Rg4 {[%emt 0:00:01]} h3 {[%emt 0:00:02]} 46. Bd3 {[%emt 0:00:02]} Rf6 {[%emt 0:00:02]} 47. b5 {[%emt 0:00:02]} h2 {[%emt 0:00:02]} 48. Rh4 {[%emt 0:00:03]} h1=Q+ {[%emt 0:00:02]} 0-1

[Event "Queens Festival Final-B 2022"]
[Site "Tornelo"]
[Date "2022.06.25"]
[Round "4.2"]
[White "Scarsi, Anna Laura"]
[Black "Deak-Sala, Emilia"]
[Result "1-0"]
[ECO "B38"]
[WhiteElo "1867"]
[BlackElo "1883"]
[Annotator "NA RC"]
[PlyCount "135"]
[EventDate "2022.06.24"]
[EventType "tourn"]
[EventCountry "NET"]
[SourceTitle "playchess.com"]
[Source "ChessBase"]
[SourceQuality "1"]
[TimeControl "180+2"]

1. e4 {[%emt 0:00:02]} c5 {[%emt 0:00:05]} 2. Nf3 {[%emt 0:00:03]} Nc6 {[%emt 0:00:03]} 3. d4 {[%emt 0:00:02]} cxd4 {[%emt 0:00:01]} 4. Nxd4 {[%emt 0:00:02]} Nf6 {[%emt 0:00:04]} 5. f3 {[%emt 0:00:14]} g6 {[%emt 0:00:04]} 6. c4 {[%emt 0:00:03]} Bg7 {[%emt 0:00:03]} 7. Be3 {[%emt 0:00:18]} O-O {[%emt 0:00:08]} 8. Nc3 {[%emt 0:00:13]} d6 {[%emt 0:00:06]} 9. Be2 {[%emt 0:00:02]} Bd7 {[%emt 0:00:02]} 10. O-O {[%emt 0:00:03]} Nxd4 {[%emt 0:00:02]} 11. Bxd4 {[%emt 0:00:02]} Bc6 {[%emt 0:00:02]} 12. Nd5 {[%emt 0:00:04]} Nd7 {[%emt 0:00:03]} 13. Bxg7 {[%emt 0:00:05]} Kxg7 {[%emt 0:00:02]} 14. Qd4+ {[%emt 0:00:01]} Kg8 {[%emt 0:00:03]} 15. Rad1 {[%emt 0:00:06]} Bxd5 {[%emt 0:00:09]} 16. exd5 {[%emt 0:00:03]} a5 {[%emt 0:00:05]} 17. Bd3 {[%emt 0:00:05]} Qb6 {[%emt 0:00:21]} 18. Qxb6 {[%emt 0:00:05]} Nxb6 {[%emt 0:00:02]} 19. Rfe1 {[%emt 0:00:02]} Rfe8 {[%emt 0:00:04]} 20. Re4 {[%emt 0:00:06]} Nd7 {[%emt 0:00:13]} 21. Bc2 {[%emt 0:00:14]} Nc5 {[%emt 0:00:15]} 22. Re2 {[%emt 0:00:07]} Kf8 {[%emt 0:00:02]} 23. Kf2 {[%emt 0:00:12]} Rec8 {[%emt 0:00:05]} 24. Rde1 {[%emt 0:00:05]} Rc7 {[%emt 0:00:01]} 25. Ke3 {[%emt 0:00:05]} Rac8 {[%emt 0:00:04]} 26. b3 {[%emt 0:00:02]} Na6 {[%emt 0:00:07]} 27. Kd4 {[%emt 0:00:18]} Nb4 {[%emt 0:00:04]} 28. Bb1 {[%emt 0:00:03]} b6 {[%emt 0:00:35]} 29. a3 {[%emt 0:00:03]} Na6 {[%emt 0:00:02]} 30. Bd3 {[%emt 0:00:05]} a4 {[%emt 0:00:04]} 31. b4 {[%emt 0:00:10]} Nb8 {[%emt 0:00:17]} 32. Rc1 {[%emt 0:00:10]} Nd7 {[%emt 0:00:05]} 33. Rce1 {[%emt 0:00:07]} Ne5 {[%emt 0:00:02]} 34. Rc2 {[%emt 0:00:11]} Nxd3 {[%emt 0:00:08]} 35. Kxd3 {[%emt 0:00:00]} b5 {[%emt 0:00:01]} 36. Rec1 {[%emt 0:00:02]} Rb8 {[%emt 0:00:14]} 37. cxb5 {[%emt 0:00:04]} Rxc2 {[%emt 0:00:01]} 38. Rxc2 {[%emt 0:00:00]} Rxb5 {[%emt 0:00:02]} 39. Rc8+ {[%emt 0:00:02]} Kg7 {[%emt 0:00:02]} 40. Kc4 {[%emt 0:00:01]} Rb7 {[%emt 0:00:02]} 41. b5 {[%emt 0:00:05]} Kf6 {[%emt 0:00:02]} 42. Ra8 {[%emt 0:00:11]} Ke5 {[%emt 0:00:08]} 43. Ra6 {[%emt 0:00:05]} Rc7+ {[%emt 0:00:04]} 44. Rc6 {[%emt 0:00:02]} Rb7 {[%emt 0:00:01]} 45. b6 {[%emt 0:00:04]} f5 {[%emt 0:00:07]} 46. Kb5 {[%emt 0:00:02]} Kxd5 {[%emt 0:00:01]} 47. Rc7 {[%emt 0:00:02]} Rb8 {[%emt 0:00:01]} 48. b7 {[%emt 0:00:02]} e5 {[%emt 0:00:11]} 49. Kb6 {[%emt 0:00:02]} e4 {[%emt 0:00:03]} 50. fxe4+ {[%emt 0:00:03]} fxe4 {[%emt 0:00:01]} 51. Rc8 {[%emt 0:00:04]} Rxb7+ {[%emt 0:00:02]} 52. Kxb7 {[%emt 0:00:00]} Kd4 {[%emt 0:00:01]} 53. Kc6 {[%emt 0:00:02]} d5 {[%emt 0:00:01]} 54. Rd8 {[%emt 0:00:06]} e3 {[%emt 0:00:02]} 55. Rxd5+ {[%emt 0:00:02]} Kc3 {[%emt 0:00:01]} 56. Re5 {[%emt 0:00:03]} Kd2 {[%emt 0:00:02]} 57. Kb5 {[%emt 0:00:02]} e2 {[%emt 0:00:02]} 58. Kxa4 {[%emt 0:00:01]} g5 {[%emt 0:00:02]} 59. Kb5 {[%emt 0:00:03]} g4 {[%emt 0:00:01]} 60. a4 {[%emt 0:00:02]} h5 {[%emt 0:00:02]} 61. a5 {[%emt 0:00:02]} h4 {[%emt 0:00:03]} 62. a6 {[%emt 0:00:03]} g3 {[%emt 0:00:01]} 63. hxg3 {[%emt 0:00:03]} hxg3 {[%emt 0:00:01]} 64. a7 {[%emt 0:00:02]} e1=Q {[%emt 0:00:02]} 65. Rxe1 {[%emt 0:00:01]} Kxe1 {[%emt 0:00:02]} 66. a8=Q {[%emt 0:00:02]} Kf2 {[%emt 0:00:01]} 67. Qf3+ {[%emt 0:00:01]} Kg1 {[%emt 0:00:01]} 68. Qxg3 {[%emt 0:00:02]} 1-0

[Event "Queens Festival Final-B 2022"]
[Site "Tornelo"]
[Date "2022.06.25"]
[Round "4.3"]
[White "Vujcic, Milena"]
[Black "Mariroh, Fariha"]
[Result "1-0"]
[ECO "B56"]
[WhiteElo "1987"]
[BlackElo "1839"]
[Annotator "NA RC"]
[PlyCount "87"]
[EventDate "2022.06.24"]
[EventType "tourn"]
[EventCountry "NET"]
[SourceTitle "playchess.com"]
[Source "ChessBase"]
[SourceQuality "1"]
[TimeControl "180+2"]

1. e4 {[%emt 0:00:02]} c5 {[%emt 0:00:04]} 2. Nf3 {[%emt 0:00:02]} d6 {[%emt 0:00:01]} 3. d4 {[%emt 0:00:01]} cxd4 {[%emt 0:00:00]} 4. Nxd4 {[%emt 0:00:02]} Nf6 {[%emt 0:00:01]} 5. Nc3 {[%emt 0:00:01]} Nc6 {[%emt 0:00:01]} 6. Be3 {[%emt 0:00:19]} e5 {[%emt 0:00:03]} 7. Nb3 {[%emt 0:00:09]} Be7 {[%emt 0:00:01]} 8. f3 {[%emt 0:00:06]} Be6 {[%emt 0:00:11]} 9. Nd5 {[%emt 0:00:03]} O-O {[%emt 0:00:04]} 10. Qd2 {[%emt 0:00:03]} a5 {[%emt 0:00:06]} 11. a4 {[%emt 0:00:15]} Nb4 {[%emt 0:00:13]} 12. Nxb4 {[%emt 0:00:10]} axb4 {[%emt 0:00:01]} 13. Qxb4 {[%emt 0:00:15]} d5 {[%emt 0:00:02]} 14. Bc5 {[%emt 0:00:02]} Bxc5 {[%emt 0:00:04]} 15. Nxc5 {[%emt 0:00:01]} dxe4 {[%emt 0:00:08]} 16. Nxe6 {[%emt 0:00:02]} fxe6 {[%emt 0:00:03]} 17. Be2 {[%emt 0:00:13]} exf3 {[%emt 0:00:02]} 18. Bxf3 {[%emt 0:00:02]} Nd5 {[%emt 0:00:09]} 19. Qe4 {[%emt 0:00:09]} Qa5+ {[%emt 0:00:08]} 20. c3 {[%emt 0:00:03]} Nf4 {[%emt 0:00:43]} 21. b4 {[%emt 0:00:11]} Qc7 {[%emt 0:00:03]} 22. O-O {[%emt 0:00:22]} Qxc3 {[%emt 0:00:18]} 23. Rfc1 {[%emt 0:00:03]} Qd4+ {[%emt 0:00:04]} 24. Qxd4 {[%emt 0:00:08]} exd4 {[%emt 0:00:00]} 25. Rc7 {[%emt 0:00:02]} Rad8 {[%emt 0:00:06]} 26. Rxb7 {[%emt 0:00:15]} d3 {[%emt 0:00:03]} 27. Rd1 {[%emt 0:00:13]} Nh3+ {[%emt 0:00:34]} 28. Kf1 {[%emt 0:00:28]} Ng5 {[%emt 0:00:06]} 29. Kf2 {[%emt 0:00:04]} e5 {[%emt 0:00:03]} 30. Re7 {[%emt 0:00:04]} e4 {[%emt 0:00:03]} 31. h4 {[%emt 0:00:01]} Nxf3 {[%emt 0:00:12]} 32. gxf3 {[%emt 0:00:04]} Rxf3+ {[%emt 0:00:01]} 33. Kg2 {[%emt 0:00:01]} Rf4 {[%emt 0:00:03]} 34. b5 {[%emt 0:00:03]} Rxh4 {[%emt 0:00:08]} 35. Kg3 {[%emt 0:00:02]} g5 {[%emt 0:00:06]} 36. b6 {[%emt 0:00:01]} Rf4 {[%emt 0:00:08]} 37. b7 {[%emt 0:00:03]} Rf7 {[%emt 0:00:04]} 38. Rxf7 {[%emt 0:00:03]} Kxf7 {[%emt 0:00:01]} 39. a5 {[%emt 0:00:02]} Ke6 {[%emt 0:00:05]} 40. Kf2 {[%emt 0:00:02]} Kd6 {[%emt 0:00:00]} 41. a6 {[%emt 0:00:01]} Kc6 {[%emt 0:00:02]} 42. Rb1 {[%emt 0:00:03]} Kc7 {[%emt 0:00:02]} 43. a7 {[%emt 0:00:02]} Rf8+ {[%emt 0:00:06]} 44. Ke1 {[%emt 0:00:03]} 1-0

[Event "Queens Festival Final-B 2022"]
[Site "Tornelo"]
[Date "2022.06.25"]
[Round "4.4"]
[White "Mammadova, Aysel"]
[Black "Francis, Onkemetse"]
[Result "1-0"]
[ECO "C01"]
[WhiteElo "1893"]
[BlackElo "1777"]
[Annotator "NA RC"]
[PlyCount "93"]
[EventDate "2022.06.24"]
[EventType "tourn"]
[EventCountry "NET"]
[SourceTitle "playchess.com"]
[Source "ChessBase"]
[SourceQuality "1"]
[TimeControl "180+2"]

1. e4 {[%emt 0:00:02]} e6 {[%emt 0:00:10]} 2. d4 {[%emt 0:00:03]} d5 {[%emt 0:00:02]} 3. exd5 {[%emt 0:00:02]} exd5 {[%emt 0:00:01]} 4. Bd3 {[%emt 0:00:02]} Bd6 {[%emt 0:00:02]} 5. Nf3 {[%emt 0:00:02]} Ne7 {[%emt 0:00:02]} 6. O-O {[%emt 0:00:01]} O-O {[%emt 0:00:02]} 7. c4 {[%emt 0:00:06]} c6 {[%emt 0:00:04]} 8. c5 {[%emt 0:00:02]} Bc7 {[%emt 0:00:01]} 9. Be3 {[%emt 0:00:04]} Ng6 {[%emt 0:00:03]} 10. Nbd2 {[%emt 0:00:03]} Nd7 {[%emt 0:00:03]} 11. Re1 {[%emt 0:00:05]} Nf6 {[%emt 0:00:02]} 12. Bxg6 {[%emt 0:00:03]} hxg6 {[%emt 0:00:02]} 13. Bg5 {[%emt 0:00:11]} Bg4 {[%emt 0:00:07]} 14. h3 {[%emt 0:00:02]} Bf5 {[%emt 0:00:04]} 15. Ne5 {[%emt 0:00:04]} Re8 {[%emt 0:00:06]} 16. Qf3 {[%emt 0:00:03]} Be6 {[%emt 0:00:07]} 17. Re3 {[%emt 0:00:06]} Qe7 {[%emt 0:00:57]} 18. Rae1 {[%emt 0:00:04]} Bd8 {[%emt 0:00:02]} 19. Qe2 {[%emt 0:00:16]} Qc7 {[%emt 0:00:07]} 20. Nxg6 {[%emt 0:00:06]} Nh7 {[%emt 0:00:21]} 21. Bxd8 {[%emt 0:00:07]} Raxd8 {[%emt 0:00:03]} 22. Ne5 {[%emt 0:00:14]} b6 {[%emt 0:00:17]} 23. b4 {[%emt 0:00:03]} Nf6 {[%emt 0:00:03]} 24. Nef3 {[%emt 0:00:13]} Bd7 {[%emt 0:00:13]} 25. Rxe8+ {[%emt 0:00:13]} Rxe8 {[%emt 0:00:02]} 26. Qd3 {[%emt 0:00:08]} Rxe1+ {[%emt 0:00:04]} 27. Nxe1 {[%emt 0:00:02]} Qf4 {[%emt 0:00:04]} 28. Qe3 {[%emt 0:00:05]} Qf5 {[%emt 0:00:05]} 29. Nd3 {[%emt 0:00:05]} bxc5 {[%emt 0:00:07]} 30. dxc5 {[%emt 0:00:02]} Qg6 {[%emt 0:00:06]} 31. Nf3 {[%emt 0:00:05]} Ne4 {[%emt 0:00:08]} 32. Nfe5 {[%emt 0:00:05]} Qe6 {[%emt 0:00:03]} 33. Nxd7 {[%emt 0:00:02]} Qxd7 {[%emt 0:00:02]} 34. f3 {[%emt 0:00:03]} Nf6 {[%emt 0:00:05]} 35. Ne5 {[%emt 0:00:02]} Qb7 {[%emt 0:00:03]} 36. a3 {[%emt 0:00:04]} Nd7 {[%emt 0:00:11]} 37. Nxd7 {[%emt 0:00:03]} Qxd7 {[%emt 0:00:03]} 38. Kf2 {[%emt 0:00:05]} Qb7 {[%emt 0:00:04]} 39. Qd3 {[%emt 0:00:05]} a5 {[%emt 0:00:04]} 40. bxa5 {[%emt 0:00:05]} Qb2+ {[%emt 0:00:03]} 41. Qe2 {[%emt 0:00:02]} Qxa3 {[%emt 0:00:02]} 42. Qe8+ {[%emt 0:00:04]} Kh7 {[%emt 0:00:03]} 43. Qxc6 {[%emt 0:00:02]} Qxa5 {[%emt 0:00:03]} 44. Qxd5 {[%emt 0:00:03]} Qb5 {[%emt 0:00:02]} 45. Qe4+ {[%emt 0:00:05]} Kg8 {[%emt 0:00:05]} 46. c6 {[%emt 0:00:03]} Qb2+ {[%emt 0:00:02]} 47. Kg3 {[%emt 0:00:02]} 1-0

[Event "Queens Festival Final-B 2022"]
[Site "Tornelo"]
[Date "2022.06.25"]
[Round "4.5"]
[White "Bian, Erin"]
[Black "Pang, Ashley"]
[Result "1-0"]
[ECO "C42"]
[WhiteElo "1811"]
[BlackElo "1967"]
[Annotator "NA RC"]
[PlyCount "79"]
[EventDate "2022.06.24"]
[EventType "tourn"]
[EventCountry "NET"]
[SourceTitle "playchess.com"]
[Source "ChessBase"]
[SourceQuality "1"]
[TimeControl "180+2"]

1. e4 {[%emt 0:00:02]} e5 {[%emt 0:00:05]} 2. Nf3 {[%emt 0:00:02]} Nf6 {[%emt 0:00:02]} 3. Nxe5 {[%emt 0:00:01]} d6 {[%emt 0:00:01]} 4. Nf3 {[%emt 0:00:01]} Nxe4 {[%emt 0:00:00]} 5. c4 {[%emt 0:00:01]} Be7 {[%emt 0:00:08]} 6. d4 {[%emt 0:00:02]} d5 {[%emt 0:00:15]} 7. Bd3 {[%emt 0:00:02]} c6 {[%emt 0:00:11]} 8. O-O {[%emt 0:00:05]} O-O {[%emt 0:00:02]} 9. Re1 {[%emt 0:00:05]} f5 {[%emt 0:00:06]} 10. Nc3 {[%emt 0:00:24]} Bd6 {[%emt 0:00:31]} 11. Qc2 {[%emt 0:00:26]} Na6 {[%emt 0:00:10]} 12. cxd5 {[%emt 0:00:05]} Nb4 {[%emt 0:00:13]} 13. Qe2 {[%emt 0:00:09]} cxd5 {[%emt 0:00:07]} 14. a3 {[%emt 0:00:15]} Nxd3 {[%emt 0:00:22]} 15. Qxd3 {[%emt 0:00:01]} Be6 {[%emt 0:00:03]} 16. Be3 {[%emt 0:00:15]} Rc8 {[%emt 0:00:03]} 17. Rac1 {[%emt 0:00:02]} Qb6 {[%emt 0:00:16]} 18. Na4 {[%emt 0:00:09]} Qa5 {[%emt 0:00:06]} 19. Nc5 {[%emt 0:00:06]} Bxc5 {[%emt 0:00:32]} 20. dxc5 {[%emt 0:00:05]} Bf7 {[%emt 0:00:07]} 21. b4 {[%emt 0:00:05]} Qc7 {[%emt 0:00:03]} 22. Bd4 {[%emt 0:00:06]} Rfe8 {[%emt 0:00:05]} 23. Nd2 {[%emt 0:00:11]} Bg6 {[%emt 0:00:02]} 24. f3 {[%emt 0:00:06]} Ng5 {[%emt 0:00:10]} 25. f4 {[%emt 0:00:08]} Ne4 {[%emt 0:00:02]} 26. Be5 {[%emt 0:00:03]} Qe7 {[%emt 0:00:02]} 27. Qxd5+ {[%emt 0:00:02]} Bf7 {[%emt 0:00:01]} 28. Qd3 {[%emt 0:00:09]} Red8 {[%emt 0:00:04]} 29. Bd6 {[%emt 0:00:03]} Qh4 {[%emt 0:00:02]} 30. Nxe4 {[%emt 0:00:02]} fxe4 {[%emt 0:00:02]} 31. Qxe4 {[%emt 0:00:12]} Re8 {[%emt 0:00:02]} 32. Be5 {[%emt 0:00:02]} Qe7 {[%emt 0:00:06]} 33. Rcd1 {[%emt 0:00:02]} b6 {[%emt 0:00:02]} 34. c6 {[%emt 0:00:05]} a5 {[%emt 0:00:03]} 35. bxa5 {[%emt 0:00:06]} bxa5 {[%emt 0:00:02]} 36. Qe3 {[%emt 0:00:21]} Rxc6 {[%emt 0:00:03]} 37. Qg3 {[%emt 0:00:01]} Rg6 {[%emt 0:00:01]} 38. Qf3 {[%emt 0:00:03]} Rb8 {[%emt 0:00:04]} 39. Bxb8 {[%emt 0:00:02]} Qb7 {[%emt 0:00:02]} 40. Rd8+ {[%emt 0:00:02]} 1-0

[Event "Queens Festival Final-B 2022"]
[Site "Tornelo"]
[Date "2022.06.25"]
[Round "5.1"]
[White "Pang, Ashley"]
[Black "Masoumi, Sahar"]
[Result "0-1"]
[ECO "A05"]
[WhiteElo "1967"]
[BlackElo "2004"]
[Annotator "NA RC"]
[PlyCount "66"]
[EventDate "2022.06.24"]
[EventType "tourn"]
[EventCountry "NET"]
[SourceTitle "playchess.com"]
[Source "ChessBase"]
[SourceQuality "1"]
[TimeControl "180+2"]

1. g3 {[%emt 0:00:02]} Nf6 {[%emt 0:00:05]} 2. Bg2 {[%emt 0:00:02]} g6 {[%emt 0:00:01]} 3. Nf3 {[%emt 0:00:01]} Bg7 {[%emt 0:00:01]} 4. d3 {[%emt 0:00:01]} O-O {[%emt 0:00:02]} 5. Nbd2 {[%emt 0:00:01]} d6 {[%emt 0:00:01]} 6. e4 {[%emt 0:00:01]} c5 {[%emt 0:00:01]} 7. O-O {[%emt 0:00:02]} Nc6 {[%emt 0:00:01]} 8. c3 {[%emt 0:00:02]} a6 {[%emt 0:00:02]} 9. Re1 {[%emt 0:00:10]} e5 {[%emt 0:00:02]} 10. a4 {[%emt 0:00:05]} h6 {[%emt 0:00:02]} 11. Nc4 {[%emt 0:00:05]} Be6 {[%emt 0:00:02]} 12. h3 {[%emt 0:00:16]} Rb8 {[%emt 0:00:06]} 13. Ne3 {[%emt 0:00:36]} d5 {[%emt 0:00:08]} 14. exd5 {[%emt 0:00:06]} Nxd5 {[%emt 0:00:01]} 15. Nc4 {[%emt 0:00:06]} Qc7 {[%emt 0:00:03]} 16. a5 {[%emt 0:00:10]} Nde7 {[%emt 0:00:07]} 17. Qa4 {[%emt 0:00:29]} Bxc4 {[%emt 0:00:08]} 18. dxc4 {[%emt 0:00:10]} f5 {[%emt 0:00:02]} 19. Be3 {[%emt 0:00:05]} e4 {[%emt 0:00:13]} 20. Nh4 {[%emt 0:00:06]} Ne5 {[%emt 0:00:06]} 21. f4 {[%emt 0:00:25]} exf3 {[%emt 0:00:12]} 22. Nxf3 {[%emt 0:00:06]} Nxf3+ {[%emt 0:00:03]} 23. Bxf3 {[%emt 0:00:01]} Qxg3+ {[%emt 0:00:02]} 24. Bg2 {[%emt 0:00:01]} Nc6 {[%emt 0:00:23]} 25. Bf2 {[%emt 0:00:09]} Qg5 {[%emt 0:00:02]} 26. Rad1 {[%emt 0:00:09]} f4 {[%emt 0:00:09]} 27. Rd5 {[%emt 0:00:09]} Ne5 {[%emt 0:00:03]} 28. h4 {[%emt 0:00:11]} Qg4 {[%emt 0:00:06]} 29. Rdxe5 {[%emt 0:00:03]} f3 {[%emt 0:00:06]} 30. Bg3 {[%emt 0:00:06]} Qxg3 {[%emt 0:00:02]} 31. Qc2 {[%emt 0:00:01]} f2+ {[%emt 0:00:05]} 32. Kh1 {[%emt 0:00:05]} Qxh4+ {[%emt 0:00:08]} 33. Bh3 {[%emt 0:00:03]} Qxh3# {[%emt 0:00:02]} 0-1